[Event "WYCC 2018 O16"]
[Site "Halkidiki"]
[Date "2018.10.28"]
[Round "9"]
[White "Chukavin, Kirill"]
[Black "Van Malder, Dries"]
[Result "1/2-1/2"]
[ECO "B32"]
[WhiteElo "2274"]
[BlackElo "2150"]
[Annotator "NA"]
[PlyCount "73"]
[EventDate "2018.10.20"]
[EventType "swiss"]
[EventCountry "GRE"]
[SourceTitle "playchess.com"]
[Source "ChessBase"]
[SourceQuality "1"]
[TimeControl "40/5400+30:1800+30"]

1. e4 {[%emt 0:00:00]} c5 {[%emt 0:00:00]} 2. Nf3 {[%emt 0:00:00]} Nc6 {[%emt 0:00:00]} 3. d4 {[%emt 0:00:08]} cxd4 {[%emt 0:00:00]} 4. Nxd4 {[%emt 0:00:04]} Qb6 {[%emt 0:00:02]} 5. Nb3 {[%emt 0:01:25]} Nf6 {[%emt 0:00:09]} 6. Bd3 {[%emt 0:05:52]} e6 {[%emt 0:01:45]} 7. Be3 {[%emt 0:01:07]} Qc7 {[%emt 0:00:11]} 8. Nc3 {[%emt 0:04:08]} Be7 {[%emt 0:05:55]} 9. f4 {[%emt 0:01:16]} d6 {[%emt 0:00:29]} 10. Qf3 {[%emt 0:01:07]} O-O {[%emt 0:02:21]} 11. g4 {[%emt 0:02:18]} a6 {[%emt 0:08:12]} 12. g5 {[%emt 0:06:45]} Nd7 {[%emt 0:01:39]} 13. h4 {[%emt 0:01:49]} b5 {[%emt 0:02:38]} 14. h5 {[%emt 0:05:14]} Nc5 {[%emt 0:24:49]} 15. Nxc5 {[%emt 0:03:29]} dxc5 {[%emt 0:00:07]} 16. e5 {[%emt 0:06:28]} c4 {[%emt 0:03:07]} 17. Be4 {[%emt 0:07:07]} Bb7 {[%emt 0:02:13]} 18. Nd1 {[%emt 0:19:22]} Rad8 {[%emt 0:09:37]} 19. c3 {[%emt 0:06:42]} Na5 {[%emt 0:18:33]} 20. Nf2 {[%emt 0:03:12]} Bxe4 {[%emt 0:01:04]} 21. Nxe4 {[%emt 0:02:03]} Qc6 {[%emt 0:01:23]} 22. Ke2 {[%emt 0:02:49]} Rd3 {[%emt 0:03:47]} 23. b4 {[%emt 0:04:43]} Rfd8 {[%emt 0:04:28]} 24. bxa5 {[%emt 0:03:12]} Rxe3+ {[%emt 0:01:00]} 25. Qxe3 {[%emt 0:00:25]} Rd3 {[%emt 0:00:14]} 26. Rad1 {[%emt 0:02:44]} Rxe3+ {[%emt 0:00:40]} 27. Kxe3 {[%emt 0:00:02]} h6 {[%emt 0:06:03]} 28. gxh6 {[%emt 0:06:19]} Bc5+ {[%emt 0:00:46]} 29. Kf3 {[%emt 0:03:29]} f5 {[%emt 0:00:43]} 30. exf6 {[%emt 0:00:01]} gxf6 {[%emt 0:00:07]} 31. h7+ {[%emt 0:01:22]} Kxh7 {[%emt 0:00:24]} 32. h6 {[%emt 0:00:47]} f5 {[%emt 0:01:46]} 33. Rd7+ {[%emt 0:00:02]} Kh8 {[%emt 0:00:41]} 34. Rd8+ {[%emt 0:00:12]} Kh7 {[%emt 0:01:12]} 35. Rd7+ {[%emt 0:00:20]} Kh8 {[%emt 0:00:24]} 36. Rd8+ {[%emt 0:00:19]} Kh7 {[%emt 0:00:07]} 37. Rd7+ {[%emt 0:00:19]} 1/2-1/2

[Event "WYCC 2018 O16"]
[Site "Halkidiki"]
[Date "2018.10.28"]
[Round "9"]
[White "Thilakarathne, G M H"]
[Black "Gatineau, Yovann"]
[Result "1/2-1/2"]
[ECO "C78"]
[WhiteElo "2268"]
[BlackElo "2376"]
[Annotator "NA"]
[PlyCount "144"]
[EventDate "2018.10.20"]
[EventType "swiss"]
[EventCountry "GRE"]
[SourceTitle "playchess.com"]
[Source "ChessBase"]
[SourceQuality "1"]
[TimeControl "40/5400+30:1800+30"]

1. e4 {[%emt 0:00:00]} e5 {[%emt 0:00:52]} 2. Nf3 {[%emt 0:00:00]} Nc6 {[%emt 0:00:43]} 3. Bb5 {[%emt 0:02:03]} a6 {[%emt 0:00:26]} 4. Ba4 {[%emt 0:00:37]} Nf6 {[%emt 0:00:11]} 5. O-O {[%emt 0:00:44]} Bc5 {[%emt 0:00:05]} 6. Re1 {[%emt 0:02:08]} O-O {[%emt 0:03:54]} 7. c3 {[%emt 0:01:50]} b5 {[%emt 0:00:20]} 8. Bb3 {[%emt 0:05:20]} d6 {[%emt 0:00:22]} 9. h3 {[%emt 0:05:32]} Bb7 {[%emt 0:01:19]} 10. d4 {[%emt 0:02:50]} Ba7 {[%emt 0:01:21]} 11. a4 {[%emt 0:16:52]} h6 {[%emt 0:03:56]} 12. Na3 $11 {[%emt 0:05:23]} b4 {[%emt 0:05:33]} 13. Nc4 {[%emt 0:04:52]} bxc3 {[%emt 0:08:07]} 14. bxc3 {[%emt 0:00:30]} Re8 {[%emt 0:01:30]} 15. d5 {[%emt 0:08:25]} Ne7 {[%emt 0:00:31]} 16. Na5 {[%emt 0:04:03]} Bc8 {[%emt 0:14:49]} 17. Nd2 {[%emt 0:13:52]} c6 {[%emt 0:05:11]} 18. Nxc6 {[%emt 0:00:20]} Nxc6 {[%emt 0:00:04]} 19. dxc6 {[%emt 0:00:08]} Qb6 {[%emt 0:00:01]} 20. Qf3 {[%emt 0:00:55]} Qxc6 {[%emt 0:00:52]} 21. a5 {[%emt 0:04:00]} Qc7 {[%emt 0:01:54]} 22. Nf1 {[%emt 0:01:56]} Be6 {[%emt 0:05:03]} 23. Ba4 {[%emt 0:03:01]} Rec8 {[%emt 0:02:35]} 24. Bxh6 {[%emt 0:02:37]} Qxc3 {[%emt 0:00:19]} 25. Qxc3 {[%emt 0:02:27]} Rxc3 {[%emt 0:00:06]} 26. Be3 {[%emt 0:06:53]} Bxe3 {[%emt 0:09:19]} 27. Rxe3 {[%emt 0:00:01]} Rc5 {[%emt 0:00:41]} 28. Bd1 {[%emt 0:00:33]} Rb8 {[%emt 0:00:28]} 29. Be2 {[%emt 0:01:50]} Bc4 {[%emt 0:03:19]} 30. Ng3 {[%emt 0:01:00]} Bxe2 {[%emt 0:11:33]} 31. Rxe2 {[%emt 0:00:13]} Rbb5 {[%emt 0:00:19]} 32. Nf5 {[%emt 0:00:58]} Rxa5 {[%emt 0:03:41]} 33. Rxa5 {[%emt 0:01:28]} Rxa5 {[%emt 0:00:04]} 34. Nxd6 {[%emt 0:00:09]} Ra4 {[%emt 0:00:13]} 35. Rb2 {[%emt 0:01:25]} Nxe4 {[%emt 0:02:59]} 36. Rb8+ {[%emt 0:00:09]} Kh7 {[%emt 0:00:04]} 37. Nxf7 {[%emt 0:00:06]} Ra1+ {[%emt 0:01:19]} 38. Kh2 {[%emt 0:00:01]} Nxf2 {[%emt 0:00:11]} 39. Rh8+ {[%emt 0:00:45]} Kg6 {[%emt 0:00:08]} 40. Nxe5+ {[%emt 0:00:00]} Kf5 {[%emt 0:00:00]} 41. Rf8+ {[%emt 0:07:06]} Kxe5 {[%emt 0:05:00]} 42. Rxf2 {[%emt 0:00:24]} a5 {[%emt 0:00:07]} 43. Kg3 {[%emt 0:08:29]} a4 {[%emt 0:03:43]} 44. Rf7 {[%emt 0:00:25]} g6 {[%emt 0:00:20]} 45. Kg4 {[%emt 0:02:38]} a3 {[%emt 0:01:02]} 46. Ra7 {[%emt 0:00:19]} Kf6 {[%emt 0:01:35]} 47. Ra6+ {[%emt 0:03:56]} Kf7 {[%emt 0:00:10]} 48. Kg5 {[%emt 0:00:44]} Rg1 {[%emt 0:05:59]} 49. g4 {[%emt 0:00:25]} Rg3 {[%emt 0:00:12]} 50. h4 {[%emt 0:00:12]} Re3 {[%emt 0:01:49]} 51. Ra7+ {[%emt 0:00:29]} Re7 {[%emt 0:00:37]} 52. Rxa3 {[%emt 0:00:15]} Kg7 {[%emt 0:00:06]} 53. Ra5 {[%emt 0:00:34]} Rb7 {[%emt 0:01:10]} 54. Re5 {[%emt 0:00:58]} Ra7 {[%emt 0:00:25]} 55. Kf4 {[%emt 0:00:30]} Ra4+ {[%emt 0:00:48]} 56. Re4 {[%emt 0:00:35]} Ra7 {[%emt 0:00:53]} 57. Rd4 {[%emt 0:00:33]} Re7 {[%emt 0:00:06]} 58. g5 {[%emt 0:00:20]} Kf7 {[%emt 0:00:52]} 59. Rd5 {[%emt 0:01:34]} Kg7 {[%emt 0:01:52]} 60. Re5 {[%emt 0:00:41]} Ra7 {[%emt 0:00:21]} 61. Re4 {[%emt 0:00:09]} Kf7 {[%emt 0:03:30]} 62. Ke5 {[%emt 0:00:06]} Re7+ {[%emt 0:00:39]} 63. Kd5 {[%emt 0:00:19]} Rxe4 {[%emt 0:00:33]} 64. Kxe4 {[%emt 0:00:06]} Ke6 {[%emt 0:00:02]} 65. Kf4 {[%emt 0:00:17]} Kf7 {[%emt 0:00:08]} 66. Kg3 {[%emt 0:00:44]} Kf8 {[%emt 0:00:38]} 67. Kf3 {[%emt 0:00:33]} Kf7 {[%emt 0:00:37]} 68. Kf4 {[%emt 0:00:36]} Kf8 {[%emt 0:00:10]} 69. Ke4 {[%emt 0:00:39]} Ke8 {[%emt 0:00:04]} 70. Kd4 {[%emt 0:00:16]} Kd8 {[%emt 0:00:15]} 71. Kc5 {[%emt 0:00:40]} Ke7 {[%emt 0:00:05]} 72. Kd5 {[%emt 0:01:07]} Kd7 {[%emt 0:00:32]} 1/2-1/2

[Event "WYCC 2018 O16"]
[Site "Halkidiki"]
[Date "2018.10.28"]
[Round "9"]
[White "Nielsen, Andre"]
[Black "Kim, Yunseo"]
[Result "0-1"]
[ECO "B18"]
[WhiteElo "2260"]
[BlackElo "1995"]
[Annotator "NA"]
[PlyCount "106"]
[EventDate "2018.10.20"]
[EventType "swiss"]
[EventCountry "GRE"]
[SourceTitle "playchess.com"]
[Source "ChessBase"]
[SourceQuality "1"]
[TimeControl "40/5400+30:1800+30"]

1. e4 {[%emt 0:00:00]} c6 {[%emt 0:00:00]} 2. d4 {[%emt 0:00:00]} d5 {[%emt 0:00:00]} 3. Nc3 {[%emt 0:00:25]} dxe4 {[%emt 0:00:00]} 4. Nxe4 {[%emt 0:00:08]} Bf5 {[%emt 0:00:00]} 5. Ng3 {[%emt 0:00:07]} Bg6 {[%emt 0:00:01]} 6. h4 {[%emt 0:00:15]} h6 {[%emt 0:00:05]} 7. Nf3 {[%emt 0:00:13]} e6 {[%emt 0:00:07]} 8. Ne5 {[%emt 0:06:54]} Bh7 {[%emt 0:00:06]} 9. Bd3 {[%emt 0:01:25]} Bxd3 {[%emt 0:00:08]} 10. Qxd3 {[%emt 0:00:10]} Nd7 {[%emt 0:00:06]} 11. f4 {[%emt 0:07:25]} Be7 {[%emt 0:00:08]} 12. Nf3 {[%emt 0:05:13]} Ngf6 {[%emt 0:07:31]} 13. Bd2 {[%emt 0:02:23]} c5 {[%emt 0:03:55]} 14. O-O-O {[%emt 0:02:00]} Qc7 {[%emt 0:05:01]} 15. Kb1 {[%emt 0:07:06]} O-O {[%emt 0:01:54]} 16. c4 {[%emt 0:05:36]} cxd4 {[%emt 0:02:08]} 17. Nxd4 {[%emt 0:00:40]} Rac8 {[%emt 0:02:20]} 18. b3 {[%emt 0:02:02]} Rfd8 {[%emt 0:15:44]} 19. Qf3 {[%emt 0:04:48]} a6 {[%emt 0:08:13]} 20. h5 {[%emt 0:09:35]} b5 {[%emt 0:07:39]} 21. cxb5 {[%emt 0:03:15]} axb5 {[%emt 0:02:50]} 22. Rc1 {[%emt 0:01:59]} Qd6 {[%emt 0:01:12]} 23. Nge2 {[%emt 0:02:23]} Nh7 {[%emt 0:17:57]} 24. Bc3 {[%emt 0:04:20]} Qa6 {[%emt 0:03:50]} 25. Rhd1 {[%emt 0:03:57]} Ndf6 {[%emt 0:05:20]} 26. Ba1 {[%emt 0:03:00]} Nd5 {[%emt 0:03:35]} 27. Rd2 {[%emt 0:07:51]} Bf6 {[%emt 0:01:51]} 28. Rxc8 {[%emt 0:01:18]} Rxc8 {[%emt 0:01:16]} 29. Qd3 {[%emt 0:01:53]} Qa5 {[%emt 0:03:08]} 30. Rc2 {[%emt 0:08:17]} Qe1+ {[%emt 0:01:42]} 31. Nc1 {[%emt 0:00:38]} Rxc2 {[%emt 0:00:36]} 32. Nxc2 {[%emt 0:00:42]} Qa5 {[%emt 0:03:36]} 33. Ne2 {[%emt 0:03:11]} Bxa1 {[%emt 0:00:30]} 34. Kxa1 {[%emt 0:00:16]} Nhf6 {[%emt 0:00:14]} 35. f5 {[%emt 0:03:05]} Nxh5 {[%emt 0:01:57]} 36. fxe6 {[%emt 0:00:24]} fxe6 {[%emt 0:00:09]} 37. Ncd4 {[%emt 0:03:33]} Nhf4 {[%emt 0:01:29]} 38. Nxf4 {[%emt 0:01:13]} Nxf4 {[%emt 0:00:05]} 39. Qe3 {[%emt 0:00:49]} e5 {[%emt 0:01:40]} 40. Qxe5 {[%emt 0:00:00]} Qc3+ {[%emt 0:00:00]} 41. Kb1 {[%emt 0:01:35]} Qd3+ {[%emt 0:04:31]} 42. Kc1 {[%emt 0:13:45]} Qxd4 {[%emt 0:00:38]} 43. Qxd4 {[%emt 0:05:34]} Ne2+ {[%emt 0:00:06]} 44. Kd2 {[%emt 0:00:13]} Nxd4 {[%emt 0:00:05]} 45. Kd3 {[%emt 0:00:05]} Nc6 {[%emt 0:00:19]} 46. a4 {[%emt 0:01:15]} bxa4 {[%emt 0:00:23]} 47. bxa4 {[%emt 0:00:07]} Kf7 {[%emt 0:00:27]} 48. Kc4 {[%emt 0:00:09]} Ke6 {[%emt 0:00:12]} 49. Kc5 {[%emt 0:00:19]} Kd7 {[%emt 0:00:10]} 50. Kd5 {[%emt 0:00:18]} h5 {[%emt 0:03:19]} 51. Kc5 {[%emt 0:01:53]} h4 {[%emt 0:00:35]} 52. Kd5 {[%emt 0:03:49]} g5 {[%emt 0:00:24]} 53. a5 {[%emt 0:00:18]} Nd8 {[%emt 0:00:18]} 0-1

[Event "WYCC 2018 O16"]
[Site "Halkidiki"]
[Date "2018.10.28"]
[Round "9"]
[White "Lund, Gunnar"]
[Black "Buniatyan, David"]
[Result "1/2-1/2"]
[ECO "A01"]
[WhiteElo "2227"]
[BlackElo "1795"]
[Annotator "NA"]
[PlyCount "107"]
[EventDate "2018.10.20"]
[EventType "swiss"]
[EventCountry "GRE"]
[SourceTitle "playchess.com"]
[Source "ChessBase"]
[SourceQuality "1"]
[TimeControl "40/5400+30:1800+30"]

1. b3 {[%emt 0:00:00]} e5 {[%emt 0:00:45]} 2. Bb2 {[%emt 0:00:00]} Nc6 {[%emt 0:00:16]} 3. e3 {[%emt 0:00:00]} Nf6 {[%emt 0:01:51]} 4. Bb5 {[%emt 0:00:09]} Bd6 {[%emt 0:01:18]} 5. Na3 {[%emt 0:00:07]} Na5 {[%emt 0:00:24]} 6. Be2 {[%emt 0:02:51]} O-O {[%emt 0:03:04]} 7. Nb5 {[%emt 0:04:06]} Qe7 {[%emt 0:03:27]} 8. Nxd6 {[%emt 0:01:15]} Qxd6 {[%emt 0:01:33]} 9. Nf3 {[%emt 0:04:55]} Nc6 {[%emt 0:01:15]} 10. O-O {[%emt 0:01:04]} e4 {[%emt 0:06:15]} 11. Ng5 {[%emt 0:06:28]} Re8 {[%emt 0:09:20]} 12. Bc4 {[%emt 0:20:22]} Re7 {[%emt 0:15:24]} 13. f3 {[%emt 0:03:15]} Ne5 {[%emt 0:02:16]} 14. Bxe5 {[%emt 0:04:58]} Qxe5 {[%emt 0:00:28]} 15. Nxe4 {[%emt 0:00:31]} Nxe4 {[%emt 0:01:57]} 16. fxe4 {[%emt 0:00:53]} Qxe4 {[%emt 0:03:01]} 17. Qh5 {[%emt 0:00:31]} Qg6 {[%emt 0:05:24]} 18. Qxg6 {[%emt 0:00:57]} hxg6 {[%emt 0:00:05]} 19. Rxf7 {[%emt 0:00:14]} Rxf7 {[%emt 0:05:41]} 20. Rf1 {[%emt 0:00:11]} d5 {[%emt 0:04:01]} 21. Bxd5 {[%emt 0:00:10]} Bf5 {[%emt 0:00:40]} 22. g4 {[%emt 0:05:04]} Rd8 {[%emt 0:03:12]} 23. Bxf7+ {[%emt 0:00:28]} Kxf7 {[%emt 0:00:03]} 24. d3 {[%emt 0:05:07]} Ke6 {[%emt 0:02:04]} 25. gxf5+ {[%emt 0:00:05]} gxf5 {[%emt 0:00:03]} 26. Kg2 {[%emt 0:01:53]} a5 {[%emt 0:05:47]} 27. Rf4 {[%emt 0:01:35]} b5 {[%emt 0:04:17]} 28. e4 {[%emt 0:04:08]} g6 {[%emt 0:01:10]} 29. exf5+ {[%emt 0:01:17]} gxf5 {[%emt 0:00:01]} 30. Rh4 {[%emt 0:00:53]} Rg8+ {[%emt 0:04:52]} 31. Kf2 {[%emt 0:00:13]} Kd6 {[%emt 0:01:15]} 32. Rh7 {[%emt 0:02:07]} c6 {[%emt 0:04:13]} 33. h4 {[%emt 0:00:45]} Kc5 {[%emt 0:02:11]} 34. Rf7 {[%emt 0:04:42]} Kb4 {[%emt 0:00:23]} 35. Rxf5 {[%emt 0:00:12]} Ka3 {[%emt 0:00:29]} 36. c4 {[%emt 0:00:18]} Rb8 {[%emt 0:03:56]} 37. Rc5 {[%emt 0:05:47]} Kxa2 {[%emt 0:03:07]} 38. Rxc6 {[%emt 0:00:11]} Kxb3 {[%emt 0:00:54]} 39. cxb5 {[%emt 0:00:16]} a4 {[%emt 0:01:06]} 40. Ra6 {[%emt 0:00:00]} Rxb5 {[%emt 0:00:00]} 41. d4 {[%emt 0:02:37]} a3 {[%emt 0:01:55]} 42. Kg3 {[%emt 0:14:00]} Rb4 {[%emt 0:08:30]} 43. h5 {[%emt 0:03:30]} a2 {[%emt 0:06:19]} 44. Rxa2 {[%emt 0:00:24]} Kxa2 {[%emt 0:00:10]} 45. Kg4 {[%emt 0:00:03]} Rxd4+ {[%emt 0:00:21]} 46. Kg5 {[%emt 0:00:12]} Kb3 {[%emt 0:00:37]} 47. h6 {[%emt 0:00:05]} Rd1 {[%emt 0:00:23]} 48. h7 {[%emt 0:00:13]} Rh1 {[%emt 0:00:10]} 49. Kg6 {[%emt 0:00:03]} Kc4 {[%emt 0:00:18]} 50. Kg7 {[%emt 0:01:17]} Rg1+ {[%emt 0:00:19]} 51. Kf8 {[%emt 0:00:44]} Rh1 {[%emt 0:00:14]} 52. Kg8 {[%emt 0:00:01]} Kd5 {[%emt 0:00:13]} 53. h8=Q {[%emt 0:00:04]} Rxh8+ {[%emt 0:00:08]} 54. Kxh8 1/2-1/2

[Event "WYCC 2018 O16"]
[Site "Halkidiki"]
[Date "2018.10.28"]
[Round "9"]
[White "French, Max"]
[Black "Mis, Mieszko"]
[Result "0-1"]
[ECO "D87"]
[WhiteElo "2074"]
[BlackElo "2307"]
[Annotator "NA"]
[PlyCount "94"]
[EventDate "2018.10.20"]
[EventType "swiss"]
[EventCountry "GRE"]
[SourceTitle "playchess.com"]
[Source "ChessBase"]
[SourceQuality "1"]
[TimeControl "40/5400+30:1800+30"]

1. d4 {[%emt 0:00:00]} Nf6 {[%emt 0:00:00]} 2. c4 {[%emt 0:00:30]} g6 {[%emt 0:00:00]} 3. Nc3 {[%emt 0:00:09]} d5 {[%emt 0:00:00]} 4. cxd5 {[%emt 0:00:13]} Nxd5 {[%emt 0:00:01]} 5. e4 {[%emt 0:00:05]} Nxc3 {[%emt 0:00:09]} 6. bxc3 {[%emt 0:00:06]} Bg7 {[%emt 0:00:04]} 7. Bc4 {[%emt 0:00:30]} O-O {[%emt 0:01:08]} 8. Ne2 {[%emt 0:00:05]} c5 {[%emt 0:00:05]} 9. O-O {[%emt 0:00:06]} Nc6 {[%emt 0:01:28]} 10. Be3 {[%emt 0:00:07]} Qc7 {[%emt 0:04:41]} 11. Rc1 {[%emt 0:00:12]} Rd8 {[%emt 0:02:34]} 12. Qd2 {[%emt 0:00:17]} b6 {[%emt 0:04:20]} 13. Bh6 {[%emt 0:03:16]} Bb7 {[%emt 0:04:47] D87: Exchange Grünfeld: Classical Line: Variations without ...cxd4} 14. Bxg7 {[%emt 0:00:57]} Kxg7 {[%emt 0:00:03]} 15. Qe3 {[%emt 0:07:04]} e6 {[%emt 0:06:57]} 16. f4 {[%emt 0:21:07]} Qe7 {[%emt 0:04:15] [#]} 17. Rf3 $146 {[%emt 0:05:20]} ({Predecessor:} 17. Qf2 $11 f5 18. Bd3 fxe4 19. Bxe4 Nxd4 20. cxd4 Bxe4 21. dxc5 bxc5 22. Rxc5 {0-1 (34) Bacrot,E (2706)-Vachier Lagrave,M (2682) Nancy 2012}) 17... f5 {[%emt 0:07:41]} 18. exf5 {[%emt 0:10:58]} exf5 {[%emt 0:02:18]} 19. Qxe7+ {[%emt 0:00:27]} Nxe7 $11 {[%emt 0:00:03]} 20. Re3 {[%emt 0:01:20]} Be4 {[%emt 0:07:28]} 21. dxc5 {[%emt 0:07:04]} bxc5 {[%emt 0:09:06]} 22. Ng3 {[%emt 0:01:05]} Nd5 {[%emt 0:00:10]} 23. Bxd5 {[%emt 0:00:48]} Bxd5 {[%emt 0:00:07]} 24. Re7+ {[%emt 0:02:59]} Kg8 {[%emt 0:04:07]} 25. Rc2 {[%emt 0:08:10]} Bc4 {[%emt 0:03:15]} 26. Kf2 {[%emt 0:04:07]} a5 {[%emt 0:03:13]} 27. Nf1 {[%emt 0:02:53]} a4 {[%emt 0:08:29]} 28. Ne3 {[%emt 0:01:00]} Bd3 {[%emt 0:03:09]} 29. Rd2 {[%emt 0:06:11]} Be4 {[%emt 0:00:35]} 30. Nc4 {[%emt 0:01:09]} Bb1 {[%emt 0:06:39]} 31. Rb2 {[%emt 0:05:38]} Rab8 {[%emt 0:00:57]} 32. Rxb8 {[%emt 0:00:06]} Rxb8 {[%emt 0:00:01]} 33. Ra7 {[%emt 0:00:09]} Bxa2 {[%emt 0:00:17]} 34. Rxa4 {[%emt 0:01:02]} Bb3 {[%emt 0:00:12]} 35. Ra5 {[%emt 0:00:05]} Bxc4 {[%emt 0:00:05]} 36. Rxc5 {[%emt 0:00:04]} Be6 {[%emt 0:00:22]} 37. Re5 {[%emt 0:00:33]} Kf7 {[%emt 0:00:05]} 38. Re2 {[%emt 0:00:08]} Rc8 {[%emt 0:00:22]} 39. Re3 {[%emt 0:00:29]} Kf6 {[%emt 0:00:09]} 40. h3 {[%emt 0:00:00]} Bd5 {[%emt 0:00:00]} 41. g4 {[%emt 0:01:32]} Be4 {[%emt 0:01:30]} 42. Kg3 {[%emt 0:00:16]} Rd8 {[%emt 0:00:16]} 43. Kh4 {[%emt 0:00:44]} h6 {[%emt 0:00:23]} 44. g5+ {[%emt 0:00:50]} hxg5+ {[%emt 0:00:07]} 45. fxg5+ {[%emt 0:00:04]} Ke5 {[%emt 0:00:06]} 46. Re2 {[%emt 0:00:21]} Kf4 {[%emt 0:00:28]} 47. Rf2+ {[%emt 0:00:08]} Bf3 {[%emt 0:00:09]} 0-1

[Event "WYCC 2018 O16"]
[Site "Halkidiki"]
[Date "2018.10.28"]
[Round "9"]
[White "Carlsson, Ludvig"]
[Black "Olsen, Filip Boe"]
[Result "0-1"]
[ECO "B19"]
[WhiteElo "2058"]
[BlackElo "2335"]
[Annotator "NA"]
[PlyCount "176"]
[EventDate "2018.10.20"]
[EventType "swiss"]
[EventCountry "GRE"]
[SourceTitle "playchess.com"]
[Source "ChessBase"]
[SourceQuality "1"]
[TimeControl "40/5400+30:1800+30"]

1. e4 {[%emt 0:00:00]} c6 {[%emt 0:00:00]} 2. d4 {[%emt 0:00:00]} d5 {[%emt 0:00:00]} 3. Nc3 {[%emt 0:00:01]} dxe4 {[%emt 0:00:00]} 4. Nxe4 {[%emt 0:00:11]} Bf5 {[%emt 0:00:03]} 5. Ng3 {[%emt 0:00:14]} Bg6 {[%emt 0:00:09]} 6. h4 {[%emt 0:00:12]} h6 {[%emt 0:00:06]} 7. Nf3 {[%emt 0:00:08]} Nd7 {[%emt 0:00:06]} 8. h5 {[%emt 0:00:12]} Bh7 {[%emt 0:00:12]} 9. Bd3 {[%emt 0:00:06]} Bxd3 {[%emt 0:00:11]} 10. Qxd3 {[%emt 0:00:07]} e6 {[%emt 0:00:06]} 11. Bd2 {[%emt 0:00:08]} Ngf6 {[%emt 0:00:21]} 12. O-O-O {[%emt 0:00:15]} Qc7 {[%emt 0:00:18]} 13. Ne4 {[%emt 0:00:10]} O-O-O {[%emt 0:00:45]} 14. g3 {[%emt 0:14:16]} Be7 {[%emt 0:00:35]} 15. Nxf6 {[%emt 0:15:25]} Nxf6 {[%emt 0:00:58]} 16. Ne5 {[%emt 0:00:11]} Bc5 {[%emt 0:04:40]} 17. Be3 {[%emt 0:02:57]} Bxd4 {[%emt 0:04:56]} 18. Bxd4 {[%emt 0:00:17]} c5 {[%emt 0:00:13]} 19. Nxf7 {[%emt 0:02:05]} Rxd4 {[%emt 0:00:15]} 20. Nxh8 {[%emt 0:00:11]} Rxd3 {[%emt 0:00:18]} 21. Rxd3 {[%emt 0:00:13]} c4 {[%emt 0:00:42]} 22. Ra3 {[%emt 0:09:03]} Nd5 {[%emt 0:06:15]} 23. Rd1 {[%emt 0:04:58]} Qc5 {[%emt 0:07:49]} 24. Ng6 {[%emt 0:14:41]} Qxf2 {[%emt 0:02:05]} 25. Rd2 {[%emt 0:04:28]} Qg1+ {[%emt 0:04:20]} 26. Rd1 {[%emt 0:00:07]} Qh2 {[%emt 0:02:17]} 27. Nf4 {[%emt 0:00:15]} Nxf4 {[%emt 0:11:50]} 28. gxf4 {[%emt 0:00:08]} Qxf4+ {[%emt 0:00:13]} 29. Kb1 {[%emt 0:00:58]} Qg4 {[%emt 0:07:52]} 30. Rh1 {[%emt 0:00:27]} Kd7 {[%emt 0:05:00]} 31. Re3 {[%emt 0:02:30]} a6 {[%emt 0:05:00]} 32. a3 {[%emt 0:01:11]} b5 {[%emt 0:00:42]} 33. Re5 {[%emt 0:00:13]} Qf3 {[%emt 0:01:17]} 34. Rhe1 {[%emt 0:00:42]} Qf6 {[%emt 0:00:36]} 35. R5e3 {[%emt 0:01:42]} Kd6 {[%emt 0:02:15]} 36. Rd1+ {[%emt 0:01:21]} Kc6 {[%emt 0:00:47]} 37. Rde1 {[%emt 0:00:15]} Kd6 {[%emt 0:00:25]} 38. Rd1+ {[%emt 0:00:18]} Ke7 {[%emt 0:00:09]} 39. Rg1 {[%emt 0:00:50]} Qd4 {[%emt 0:06:04]} 40. Rge1 {[%emt 0:00:00]} Qd5 {[%emt 0:00:00]} 41. Re5 {[%emt 0:02:53]} Qd6 {[%emt 0:02:18]} 42. R5e3 {[%emt 0:00:14]} a5 {[%emt 0:02:06]} 43. Rg1 {[%emt 0:01:34]} Qd4 {[%emt 0:00:46]} 44. Rge1 {[%emt 0:01:56]} Qd5 {[%emt 0:01:05]} 45. Re5 {[%emt 0:02:35]} Qc6 {[%emt 0:00:21]} 46. R5e3 {[%emt 0:00:14]} b4 {[%emt 0:03:00]} 47. axb4 {[%emt 0:00:40]} axb4 {[%emt 0:00:02]} 48. Rg3 {[%emt 0:00:18]} Kf8 {[%emt 0:02:08]} 49. Rge3 {[%emt 0:00:55]} Kf7 {[%emt 0:01:16]} 50. Rf1+ {[%emt 0:00:09]} Kg8 {[%emt 0:00:59]} 51. Rfe1 {[%emt 0:02:24]} Qb5 {[%emt 0:02:55]} 52. Re5 {[%emt 0:06:18]} Qa4 {[%emt 0:02:08]} 53. R1e4 {[%emt 0:00:08]} b3 {[%emt 0:00:57]} 54. cxb3 {[%emt 0:00:08]} Qxb3 {[%emt 0:00:14]} 55. Re3 {[%emt 0:00:06]} Qd1+ {[%emt 0:01:01]} 56. Ka2 {[%emt 0:00:06]} Kh7 {[%emt 0:03:18]} 57. Rg3 {[%emt 0:04:15]} Qd4 {[%emt 0:04:26]} 58. Rge3 {[%emt 0:00:20]} Qa7+ {[%emt 0:02:34]} 59. Kb1 {[%emt 0:01:36]} Qb7 {[%emt 0:00:29]} 60. Ka2 {[%emt 0:02:12]} Kg8 {[%emt 0:02:04]} 61. Kb1 {[%emt 0:03:19]} Kf7 {[%emt 0:01:49]} 62. Kc2 {[%emt 0:00:07]} Qb6 {[%emt 0:01:43]} 63. Kc3 {[%emt 0:04:26]} Qb3+ {[%emt 0:02:39]} 64. Kd4 {[%emt 0:00:28]} Qb4 {[%emt 0:01:28]} 65. Rc3 {[%emt 0:02:22]} Kf6 {[%emt 0:02:08]} 66. Re2 {[%emt 0:03:29]} Qd6+ {[%emt 0:00:38]} 67. Ke3 {[%emt 0:00:11]} Qe5+ {[%emt 0:01:18]} 68. Kd2 {[%emt 0:00:12]} Qd4+ {[%emt 0:03:05]} 69. Ke1 {[%emt 0:02:33]} e5 {[%emt 0:00:41]} 70. Rf2+ {[%emt 0:01:33]} Ke6 {[%emt 0:00:20]} 71. Rfc2 {[%emt 0:00:06]} Qh4+ {[%emt 0:00:45]} 72. Kf1 {[%emt 0:00:30]} Qxh5 {[%emt 0:03:00]} 73. Rxc4 {[%emt 0:00:08]} Qf3+ {[%emt 0:00:03]} 74. Kg1 {[%emt 0:01:28]} Qe3+ {[%emt 0:00:31]} 75. Kf1 {[%emt 0:00:19]} h5 {[%emt 0:00:48]} 76. b4 {[%emt 0:00:17]} g5 {[%emt 0:01:41]} 77. Rc6+ {[%emt 0:07:18]} Kf5 {[%emt 0:02:04]} 78. Rf2+ {[%emt 0:00:25]} Kg4 {[%emt 0:00:22]} 79. Rg2+ {[%emt 0:00:35]} Kh3 {[%emt 0:01:30]} 80. Rgc2 {[%emt 0:01:30]} Qf3+ {[%emt 0:00:26]} 81. Ke1 {[%emt 0:02:55]} Qe4+ {[%emt 0:00:27]} 82. Kf2 {[%emt 0:01:41]} Qf4+ {[%emt 0:01:57]} 83. Kg1 {[%emt 0:00:55]} g4 {[%emt 0:01:12]} 84. R6c3+ {[%emt 0:01:30]} g3 {[%emt 0:00:50]} 85. Rh2+ {[%emt 0:00:06]} Kg4 {[%emt 0:00:09]} 86. Rhc2 {[%emt 0:00:05]} e4 {[%emt 0:01:48]} 87. Rxg3+ {[%emt 0:01:12]} Kxg3 {[%emt 0:00:36]} 88. Rg2+ {[%emt 0:00:07]} Kh3 {[%emt 0:00:11]} 0-1